Department family,Entity,Date,Expense Type,Expense area,Supplier,Transaction number,AP Amount (�)
Department of Health,NHS Rotherham CCG,31/03/2019,Clinical&Medical-Commercial Sector,LEARNING DIFFICULTIES,ASC HEALTHCARE LTD,26436379,"39,817.14"
Department of Health,NHS Rotherham CCG,31/03/2019,Contract & Agency-Agency Spec Contr,NON RECURRENT PROGRAMMES,ATTAIN HEALTH MANAGEMENT SERVICES LTD,26447392,"30,600.00"
Department of Health,NHS Rotherham CCG,31/03/2019,Hcare Srv Rec Fdtn Trust-Contract Baseline,ACUTE COMMISSIONING,BARNSLEY HOSPITAL NHS FOUNDATION TRUST,26331427,"143,180.00"
Department of Health,NHS Rotherham CCG,31/03/2019,Clinical&Medical-Commercial Sector,ACUTE COMMISSIONING,BMI HEALTHCARE LTD,26287751,"34,405.77"
Department of Health,NHS Rotherham CCG,31/03/2019,Clinical&Medical-Commercial Sector,ACUTE COMMISSIONING,CARE UK CLINICAL SERVICES LTD,26331488,"56,509.05"
Department of Health,NHS Rotherham CCG,31/03/2019,Clinical&Medical-Commercial Sector,ACUTE COMMISSIONING,CLAREMONT HOSPITAL,26447340,"52,570.00"
Department of Health,NHS Rotherham CCG,31/03/2019,C&M-PMS LES Extended Hours,GP FORWARD VIEW,CONNECT HEALTHCARE ROTHERHAM LTD,26447372,"345,000.00"
Department of Health,NHS Rotherham CCG,31/03/2019,Clinical&Medical- Non NHS LES,PRIMARY CARE INVESTMENTS,CONNECT HEALTHCARE ROTHERHAM LTD,26603619,"200,000.00"
Department of Health,NHS Rotherham CCG,31/03/2019,Clinical&Medical- Non NHS LES,LOCAL ENHANCED SERVICES,CONNECT HEALTHCARE ROTHERHAM LTD,26603624,"395,000.00"
Department of Health,NHS Rotherham CCG,31/03/2019,Clinical&Medical- Non NHS LES,LOCAL ENHANCED SERVICES,CONNECT HEALTHCARE ROTHERHAM LTD,26603629,"53,000.00"
Department of Health,NHS Rotherham CCG,31/03/2019,Clinical&Medical- Non NHS LES,PRIMARY CARE INVESTMENTS,CONNECT HEALTHCARE ROTHERHAM LTD,26613020,"275,000.00"
Department of Health,NHS Rotherham CCG,31/03/2019,Clinical&Medical-Voluntary Sector,COMMISSIONING - NON ACUTE,CROSSROADS CARE ROTHERHAM,26569795,"65,000.00"
Department of Health,NHS Rotherham CCG,31/03/2019,Computer Hardware Purch,IM&T PROJECTS,DELL CORPORATION LTD,26514630,"32,153.40"
Department of Health,NHS Rotherham CCG,31/03/2019,Computer Hardware Purch,IM&T PROJECTS,DELL CORPORATION LTD,26514631,"32,153.40"
Department of Health,NHS Rotherham CCG,31/03/2019,Computer Hardware Purch,IM&T PROJECTS,DELL CORPORATION LTD,26514632,"30,867.26"
Department of Health,NHS Rotherham CCG,28/02/2019,Hcare Srv Rec Fdtn Trust-Contract Baseline,ACUTE COMMISSIONING,DONCASTER AND BASSETLAW HOSPITALS NHS FOUNDATION TRUST,26199051,"844,038.00"
Department of Health,NHS Rotherham CCG,31/03/2019,C&M-PMS Contract Value,PRC DELEGATED CO-COMMISSIONING,NHS ROTHERHAM CCG GP PRACTICE,26364391,"38,280.42"
Department of Health,NHS Rotherham CCG,31/03/2019,C&M-PMS DES Extended Hours Access,PRC DELEGATED CO-COMMISSIONING,NHS ROTHERHAM CCG GP PRACTICE,26364391,"2,584.00"
Department of Health,NHS Rotherham CCG,31/03/2019,C&M-PMS PCO Seniority,PRC DELEGATED CO-COMMISSIONING,NHS ROTHERHAM CCG GP PRACTICE,26364391,"1,577.03"
Department of Health,NHS Rotherham CCG,31/03/2019,C&M-PMS Prem Healthcentre Rent,PRC DELEGATED CO-COMMISSIONING,NHS ROTHERHAM CCG GP PRACTICE,26364391,"1,051.90"
Department of Health,NHS Rotherham CCG,31/03/2019,C&M-PMS Prem Notional Rent,PRC DELEGATED CO-COMMISSIONING,NHS ROTHERHAM CCG GP PRACTICE,26364391,"2,833.33"
Department of Health,NHS Rotherham CCG,31/03/2019,C&M-PMS Prem Water Rates,PRC DELEGATED CO-COMMISSIONING,NHS ROTHERHAM CCG GP PRACTICE,26364391,217.19
Department of Health,NHS Rotherham CCG,31/03/2019,C&M-PMS QOF Aspiration,PRC DELEGATED CO-COMMISSIONING,NHS ROTHERHAM CCG GP PRACTICE,26364391,"3,091.85"
Department of Health,NHS Rotherham CCG,31/03/2019,C&M-PMS Contract Value,PRC DELEGATED CO-COMMISSIONING,NHS ROTHERHAM CCG GP PRACTICE,26364389,"98,611.77"
Department of Health,NHS Rotherham CCG,31/03/2019,C&M-PMS DES Extended Hours Access,PRC DELEGATED CO-COMMISSIONING,NHS ROTHERHAM CCG GP PRACTICE,26364389,"5,555.60"
Department of Health,NHS Rotherham CCG,31/03/2019,C&M-PMS Out of Hours Opt Outs,PRC DELEGATED CO-COMMISSIONING,NHS ROTHERHAM CCG GP PRACTICE,26364389,4.27
Department of Health,NHS Rotherham CCG,31/03/2019,C&M-PMS PCO Seniority,PRC DELEGATED CO-COMMISSIONING,NHS ROTHERHAM CCG GP PRACTICE,26364389,"2,414.87"
Department of Health,NHS Rotherham CCG,31/03/2019,C&M-PMS Prem Notional Rent,PRC DELEGATED CO-COMMISSIONING,NHS ROTHERHAM CCG GP PRACTICE,26364389,"7,331.33"
Department of Health,NHS Rotherham CCG,31/03/2019,C&M-PMS QOF Aspiration,PRC DELEGATED CO-COMMISSIONING,NHS ROTHERHAM CCG GP PRACTICE,26364389,"9,960.27"
Department of Health,NHS Rotherham CCG,31/03/2019,C&M-PMS Contract Value,PRC DELEGATED CO-COMMISSIONING,NHS ROTHERHAM CCG GP PRACTICE,26364393,"95,035.65"
Department of Health,NHS Rotherham CCG,31/03/2019,C&M-PMS Out of Hours Opt Outs,PRC DELEGATED CO-COMMISSIONING,NHS ROTHERHAM CCG GP PRACTICE,26364393,94.11
Department of Health,NHS Rotherham CCG,31/03/2019,C&M-PMS PCO Seniority,PRC DELEGATED CO-COMMISSIONING,NHS ROTHERHAM CCG GP PRACTICE,26364393,"2,282.49"
Department of Health,NHS Rotherham CCG,31/03/2019,C&M-PMS QOF Aspiration,PRC DELEGATED CO-COMMISSIONING,NHS ROTHERHAM CCG GP PRACTICE,26364393,"8,208.00"
Department of Health,NHS Rotherham CCG,31/03/2019,C&M-GMS DES Extended Hours Access,PRC DELEGATED CO-COMMISSIONING,NHS ROTHERHAM CCG GP PRACTICE,26601046,"2,821.50"
Department of Health,NHS Rotherham CCG,31/03/2019,C&M-GMS Global Sum,PRC DELEGATED CO-COMMISSIONING,NHS ROTHERHAM CCG GP PRACTICE,26601046,"46,018.70"
Department of Health,NHS Rotherham CCG,31/03/2019,C&M-GMS MPIG Correction Factor,PRC DELEGATED CO-COMMISSIONING,NHS ROTHERHAM CCG GP PRACTICE,26601046,123.39
Department of Health,NHS Rotherham CCG,31/03/2019,C&M-GMS PCO Seniority,PRC DELEGATED CO-COMMISSIONING,NHS ROTHERHAM CCG GP PRACTICE,26601046,"2,328.66"
Department of Health,NHS Rotherham CCG,31/03/2019,C&M-GMS Prem Notional Rent,PRC DELEGATED CO-COMMISSIONING,NHS ROTHERHAM CCG GP PRACTICE,26601046,"2,991.67"
Department of Health,NHS Rotherham CCG,31/03/2019,C&M-GMS Prem Rates,PRC DELEGATED CO-COMMISSIONING,NHS ROTHERHAM CCG GP PRACTICE,26601046,316.00
Department of Health,NHS Rotherham CCG,31/03/2019,C&M-GMS QOF Aspiration,PRC DELEGATED CO-COMMISSIONING,NHS ROTHERHAM CCG GP PRACTICE,26601046,"5,377.31"
Department of Health,NHS Rotherham CCG,31/03/2019,C&M-PMS Contract Value,PRC DELEGATED CO-COMMISSIONING,NHS ROTHERHAM CCG GP PRACTICE,26364399,"112,196.42"
Department of Health,NHS Rotherham CCG,31/03/2019,C&M-PMS DES Extended Hours Access,PRC DELEGATED CO-COMMISSIONING,NHS ROTHERHAM CCG GP PRACTICE,26364399,"6,325.10"
Department of Health,NHS Rotherham CCG,31/03/2019,C&M-PMS Out of Hours Opt Outs,PRC DELEGATED CO-COMMISSIONING,NHS ROTHERHAM CCG GP PRACTICE,26364399,57.44
Department of Health,NHS Rotherham CCG,31/03/2019,C&M-PMS PCO Locum Adop/Pat/Mat,PRC DELEGATED CO-COMMISSIONING,NHS ROTHERHAM CCG GP PRACTICE,26364399,"8,876.08"
Department of Health,NHS Rotherham CCG,31/03/2019,C&M-PMS PCO Seniority,PRC DELEGATED CO-COMMISSIONING,NHS ROTHERHAM CCG GP PRACTICE,26364399,"2,431.10"
Department of Health,NHS Rotherham CCG,31/03/2019,C&M-PMS Prem Actual Rent,PRC DELEGATED CO-COMMISSIONING,NHS ROTHERHAM CCG GP PRACTICE,26364399,"49,393.86"
Department of Health,NHS Rotherham CCG,31/03/2019,C&M-PMS Prem Healthcentre Rent,PRC DELEGATED CO-COMMISSIONING,NHS ROTHERHAM CCG GP PRACTICE,26364399,"1,785.74"
Department of Health,NHS Rotherham CCG,31/03/2019,C&M-PMS Prem Water Rates,PRC DELEGATED CO-COMMISSIONING,NHS ROTHERHAM CCG GP PRACTICE,26364399,"1,782.00"
Department of Health,NHS Rotherham CCG,31/03/2019,C&M-PMS QOF Aspiration,PRC DELEGATED CO-COMMISSIONING,NHS ROTHERHAM CCG GP PRACTICE,26364399,"10,389.28"
Department of Health,NHS Rotherham CCG,31/03/2019,C&M-GMS DES Extended Hours Access,PRC DELEGATED CO-COMMISSIONING,NHS ROTHERHAM CCG GP PRACTICE,26601048,"5,524.73"
Department of Health,NHS Rotherham CCG,31/03/2019,C&M-GMS Global Sum,PRC DELEGATED CO-COMMISSIONING,NHS ROTHERHAM CCG GP PRACTICE,26601048,"87,288.25"
Department of Health,NHS Rotherham CCG,31/03/2019,C&M-GMS MPIG Correction Factor,PRC DELEGATED CO-COMMISSIONING,NHS ROTHERHAM CCG GP PRACTICE,26601048,"2,572.20"
Department of Health,NHS Rotherham CCG,31/03/2019,C&M-GMS PCO Seniority,PRC DELEGATED CO-COMMISSIONING,NHS ROTHERHAM CCG GP PRACTICE,26601048,"1,856.39"
Department of Health,NHS Rotherham CCG,31/03/2019,C&M-GMS Prem Notional Rent,PRC DELEGATED CO-COMMISSIONING,NHS ROTHERHAM CCG GP PRACTICE,26601048,"7,413.75"
Department of Health,NHS Rotherham CCG,31/03/2019,C&M-GMS QOF Aspiration,PRC DELEGATED CO-COMMISSIONING,NHS ROTHERHAM CCG GP PRACTICE,26601048,"9,727.86"
Department of Health,NHS Rotherham CCG,31/03/2019,C&M-PMS Contract Value,PRC DELEGATED CO-COMMISSIONING,NHS ROTHERHAM CCG GP PRACTICE,26364396,-416.30
Department of Health,NHS Rotherham CCG,31/03/2019,C&M-PMS GP Statutory Levy,PRC DELEGATED CO-COMMISSIONING,NHS ROTHERHAM CCG GP PRACTICE,26364396,-589.05
Department of Health,NHS Rotherham CCG,31/03/2019,C&M-PMS Out of Hours Opt Outs,PRC DELEGATED CO-COMMISSIONING,NHS ROTHERHAM CCG GP PRACTICE,26364396,"-8,054.45"
Department of Health,NHS Rotherham CCG,31/03/2019,C&M-PMS Prem Notional Rent,PRC DELEGATED CO-COMMISSIONING,NHS ROTHERHAM CCG GP PRACTICE,26364396,"-2,334.69"
Department of Health,NHS Rotherham CCG,31/03/2019,C&M-PMS Voluntary Levy,PRC DELEGATED CO-COMMISSIONING,NHS ROTHERHAM CCG GP PRACTICE,26364396,-86.63
Department of Health,NHS Rotherham CCG,31/03/2019,ME - PMS TPS Added Years Adj EEs,PRC DELEGATED CO-COMMISSIONING,NHS ROTHERHAM CCG GP PRACTICE,26364396,-720.00
Department of Health,NHS Rotherham CCG,31/03/2019,ME-PMS GP Pension EEs-PMS,PRC DELEGATED CO-COMMISSIONING,NHS ROTHERHAM CCG GP PRACTICE,26364396,"-9,387.72"
Department of Health,NHS Rotherham CCG,31/03/2019,ME-PMS GP Pension ERs Adjs - PMS,PRC DELEGATED CO-COMMISSIONING,NHS ROTHERHAM CCG GP PRACTICE,26364396,"-9,928.19"
Department of Health,NHS Rotherham CCG,31/03/2019,C&M-PMS Contract Value,PRC DELEGATED CO-COMMISSIONING,NHS ROTHERHAM CCG GP PRACTICE,26364397,"171,310.75"
Department of Health,NHS Rotherham CCG,31/03/2019,C&M-PMS DES Extended Hours Access,PRC DELEGATED CO-COMMISSIONING,NHS ROTHERHAM CCG GP PRACTICE,26364397,"9,884.75"
Department of Health,NHS Rotherham CCG,31/03/2019,C&M-PMS DES Learn Dsblty Hlth Chk,PRC DELEGATED CO-COMMISSIONING,NHS ROTHERHAM CCG GP PRACTICE,26364397,560.00
Department of Health,NHS Rotherham CCG,31/03/2019,C&M-PMS Out of Hours Opt Outs,PRC DELEGATED CO-COMMISSIONING,NHS ROTHERHAM CCG GP PRACTICE,26364397,20.47
Department of Health,NHS Rotherham CCG,31/03/2019,C&M-PMS PCO Seniority,PRC DELEGATED CO-COMMISSIONING,NHS ROTHERHAM CCG GP PRACTICE,26364397,"7,608.12"
Department of Health,NHS Rotherham CCG,31/03/2019,C&M-PMS Prem Actual Rent,PRC DELEGATED CO-COMMISSIONING,NHS ROTHERHAM CCG GP PRACTICE,26364397,"12,510.33"
Department of Health,NHS Rotherham CCG,31/03/2019,C&M-PMS Prem Notional Rent,PRC DELEGATED CO-COMMISSIONING,NHS ROTHERHAM CCG GP PRACTICE,26364397,"8,776.25"
Department of Health,NHS Rotherham CCG,31/03/2019,C&M-PMS Prem Rates,PRC DELEGATED CO-COMMISSIONING,NHS ROTHERHAM CCG GP PRACTICE,26364397,"1,358.00"
Department of Health,NHS Rotherham CCG,31/03/2019,C&M-PMS QOF Aspiration,PRC DELEGATED CO-COMMISSIONING,NHS ROTHERHAM CCG GP PRACTICE,26364397,"19,109.79"
Department of Health,NHS Rotherham CCG,31/03/2019,ME-PMS GP Pension EEs Adjs - PMS,PRC DELEGATED CO-COMMISSIONING,NHS ROTHERHAM CCG GP PRACTICE,26364397,"1,522.50"
Department of Health,NHS Rotherham CCG,31/03/2019,ME-PMS GP Pension ERs Adjs - PMS,PRC DELEGATED CO-COMMISSIONING,NHS ROTHERHAM CCG GP PRACTICE,26364397,"1,509.90"
Department of Health,NHS Rotherham CCG,31/03/2019,C&M-PMS Cost of Drugs -Dispensing,LOCAL ENHANCED SERVICES,NHS ROTHERHAM CCG GP PRACTICE,26620260,"-27,381.94"
Department of Health,NHS Rotherham CCG,31/03/2019,C&M-PMS Prsc Chrgs Cll&Rmttd by GPs,PRC DELEGATED CO-COMMISSIONING,NHS ROTHERHAM CCG GP PRACTICE,26620260,-906.40
Department of Health,NHS Rotherham CCG,31/03/2019,C&M-PMS Cost of Drugs -Dispensing,LOCAL ENHANCED SERVICES,NHS ROTHERHAM CCG GP PRACTICE,26620261,"44,536.86"
Department of Health,NHS Rotherham CCG,31/03/2019,C&M-PMS Prof fees Dispensing,PRC DELEGATED CO-COMMISSIONING,NHS ROTHERHAM CCG GP PRACTICE,26620261,"9,122.16"
Department of Health,NHS Rotherham CCG,31/03/2019,C&M-PMS Prsc Chrgs Cll&Rmttd by GPs,LOCAL ENHANCED SERVICES,NHS ROTHERHAM CCG GP PRACTICE,26620261,906.40
Department of Health,NHS Rotherham CCG,31/03/2019,C&M-PMS Contract Value,PRC DELEGATED CO-COMMISSIONING,NHS ROTHERHAM CCG GP PRACTICE,26364395,"95,655.67"
Department of Health,NHS Rotherham CCG,31/03/2019,C&M-PMS DES Extended Hours Access,PRC DELEGATED CO-COMMISSIONING,NHS ROTHERHAM CCG GP PRACTICE,26364395,"5,446.35"
Department of Health,NHS Rotherham CCG,31/03/2019,C&M-PMS PCO Seniority,PRC DELEGATED CO-COMMISSIONING,NHS ROTHERHAM CCG GP PRACTICE,26364395,"4,750.91"
Department of Health,NHS Rotherham CCG,31/03/2019,C&M-PMS Prem Notional Rent,PRC DELEGATED CO-COMMISSIONING,NHS ROTHERHAM CCG GP PRACTICE,26364395,"14,528.59"
Department of Health,NHS Rotherham CCG,31/03/2019,C&M-PMS QOF Aspiration,PRC DELEGATED CO-COMMISSIONING,NHS ROTHERHAM CCG GP PRACTICE,26364395,"9,923.51"
Department of Health,NHS Rotherham CCG,31/03/2019,C&M-PMS Cost of Drugs -Dispensing,LOCAL ENHANCED SERVICES,NHS ROTHERHAM CCG GP PRACTICE,26620258,"-32,468.08"
Department of Health,NHS Rotherham CCG,31/03/2019,C&M-PMS Prsc Chrgs Cll&Rmttd by GPs,PRC DELEGATED CO-COMMISSIONING,NHS ROTHERHAM CCG GP PRACTICE,26620258,"-1,302.40"
Department of Health,NHS Rotherham CCG,31/03/2019,C&M-PMS Cost of Drugs -Dispensing,LOCAL ENHANCED SERVICES,NHS ROTHERHAM CCG GP PRACTICE,26620259,"56,016.27"
Department of Health,NHS Rotherham CCG,31/03/2019,C&M-PMS Prof fees Dispensing,PRC DELEGATED CO-COMMISSIONING,NHS ROTHERHAM CCG GP PRACTICE,26620259,"12,348.57"
Department of Health,NHS Rotherham CCG,31/03/2019,C&M-PMS Prsc Chrgs Cll&Rmttd by GPs,LOCAL ENHANCED SERVICES,NHS ROTHERHAM CCG GP PRACTICE,26620259,"1,302.40"
Department of Health,NHS Rotherham CCG,31/03/2019,C&M-GMS DES Extended Hours Access,PRC DELEGATED CO-COMMISSIONING,NHS ROTHERHAM CCG GP PRACTICE,26601050,"5,494.80"
Department of Health,NHS Rotherham CCG,31/03/2019,C&M-GMS Global Sum,PRC DELEGATED CO-COMMISSIONING,NHS ROTHERHAM CCG GP PRACTICE,26601050,"87,842.27"
Department of Health,NHS Rotherham CCG,31/03/2019,C&M-GMS MPIG Correction Factor,PRC DELEGATED CO-COMMISSIONING,NHS ROTHERHAM CCG GP PRACTICE,26601050,"2,172.88"
Department of Health,NHS Rotherham CCG,31/03/2019,C&M-GMS PCO Seniority,PRC DELEGATED CO-COMMISSIONING,NHS ROTHERHAM CCG GP PRACTICE,26601050,"3,918.79"
Department of Health,NHS Rotherham CCG,31/03/2019,C&M-GMS Prem Cost Rent,PRC DELEGATED CO-COMMISSIONING,NHS ROTHERHAM CCG GP PRACTICE,26601050,762.92
Department of Health,NHS Rotherham CCG,31/03/2019,C&M-GMS Prem Notional Rent,PRC DELEGATED CO-COMMISSIONING,NHS ROTHERHAM CCG GP PRACTICE,26601050,"9,025.01"
Department of Health,NHS Rotherham CCG,31/03/2019,C&M-GMS Prem Rates,PRC DELEGATED CO-COMMISSIONING,NHS ROTHERHAM CCG GP PRACTICE,26601050,"1,601.00"
Department of Health,NHS Rotherham CCG,31/03/2019,C&M-GMS Prem Water Rates,PRC DELEGATED CO-COMMISSIONING,NHS ROTHERHAM CCG GP PRACTICE,26601050,380.48
Department of Health,NHS Rotherham CCG,31/03/2019,C&M-GMS QOF Aspiration,PRC DELEGATED CO-COMMISSIONING,NHS ROTHERHAM CCG GP PRACTICE,26601050,"8,714.50"
Department of Health,NHS Rotherham CCG,31/03/2019,C&M-GMS Cost of Drugs -Dispensing,LOCAL ENHANCED SERVICES,NHS ROTHERHAM CCG GP PRACTICE,26620264,"25,461.65"
Department of Health,NHS Rotherham CCG,31/03/2019,C&M-GMS Prof Fees Dispensing,PRC DELEGATED CO-COMMISSIONING,NHS ROTHERHAM CCG GP PRACTICE,26620264,"3,685.70"
Department of Health,NHS Rotherham CCG,31/03/2019,C&M-GMS PrscrptnChrgsColl&RmttdbyGP,LOCAL ENHANCED SERVICES,NHS ROTHERHAM CCG GP PRACTICE,26620264,440.00
Department of Health,NHS Rotherham CCG,31/03/2019,C&M-PMS Contract Value,PRC DELEGATED CO-COMMISSIONING,NHS ROTHERHAM CCG GP PRACTICE,26364403,"107,741.31"
Department of Health,NHS Rotherham CCG,31/03/2019,C&M-PMS PCO Seniority,PRC DELEGATED CO-COMMISSIONING,NHS ROTHERHAM CCG GP PRACTICE,26364403,"3,787.68"
Department of Health,NHS Rotherham CCG,31/03/2019,C&M-PMS Prem Notional Rent,PRC DELEGATED CO-COMMISSIONING,NHS ROTHERHAM CCG GP PRACTICE,26364403,"9,300.00"
Department of Health,NHS Rotherham CCG,31/03/2019,C&M-PMS QOF Aspiration,PRC DELEGATED CO-COMMISSIONING,NHS ROTHERHAM CCG GP PRACTICE,26364403,"10,888.94"
Department of Health,NHS Rotherham CCG,31/03/2019,C&M-PMS Contract Value,PRC DELEGATED CO-COMMISSIONING,NHS ROTHERHAM CCG GP PRACTICE,26364400,-221.84
Department of Health,NHS Rotherham CCG,31/03/2019,C&M-PMS GP Statutory Levy,PRC DELEGATED CO-COMMISSIONING,NHS ROTHERHAM CCG GP PRACTICE,26364400,-496.77
Department of Health,NHS Rotherham CCG,31/03/2019,C&M-PMS Out of Hours Opt Outs,PRC DELEGATED CO-COMMISSIONING,NHS ROTHERHAM CCG GP PRACTICE,26364400,"-7,125.98"
Department of Health,NHS Rotherham CCG,31/03/2019,C&M-PMS Voluntary Levy,PRC DELEGATED CO-COMMISSIONING,NHS ROTHERHAM CCG GP PRACTICE,26364400,-73.05
Department of Health,NHS Rotherham CCG,31/03/2019,ME - PMS TPS Added Years Adj EEs,PRC DELEGATED CO-COMMISSIONING,NHS ROTHERHAM CCG GP PRACTICE,26364400,-176.27
Department of Health,NHS Rotherham CCG,31/03/2019,ME-PMS GP Pension EEs Adjs - PMS,PRC DELEGATED CO-COMMISSIONING,NHS ROTHERHAM CCG GP PRACTICE,26364400,"-3,375.00"
Department of Health,NHS Rotherham CCG,31/03/2019,ME-PMS GP Pension EEs-PMS,PRC DELEGATED CO-COMMISSIONING,NHS ROTHERHAM CCG GP PRACTICE,26364400,"-9,237.87"
Department of Health,NHS Rotherham CCG,31/03/2019,ME-PMS GP Pension ERs Adjs - PMS,PRC DELEGATED CO-COMMISSIONING,NHS ROTHERHAM CCG GP PRACTICE,26364400,"-13,882.31"
Department of Health,NHS Rotherham CCG,31/03/2019,C&M-PMS Contract Value,PRC DELEGATED CO-COMMISSIONING,NHS ROTHERHAM CCG GP PRACTICE,26364401,"151,864.84"
Department of Health,NHS Rotherham CCG,31/03/2019,C&M-PMS DES Extended Hours Access,PRC DELEGATED CO-COMMISSIONING,NHS ROTHERHAM CCG GP PRACTICE,26364401,"8,315.83"
Department of Health,NHS Rotherham CCG,31/03/2019,C&M-PMS Out of Hours Opt Outs,PRC DELEGATED CO-COMMISSIONING,NHS ROTHERHAM CCG GP PRACTICE,26364401,10.92
Department of Health,NHS Rotherham CCG,31/03/2019,C&M-PMS PCO Seniority,PRC DELEGATED CO-COMMISSIONING,NHS ROTHERHAM CCG GP PRACTICE,26364401,"4,281.70"
Department of Health,NHS Rotherham CCG,31/03/2019,C&M-PMS Prem Actual Rent,PRC DELEGATED CO-COMMISSIONING,NHS ROTHERHAM CCG GP PRACTICE,26364401,550.00
Department of Health,NHS Rotherham CCG,31/03/2019,C&M-PMS Prem Healthcentre Rent,PRC DELEGATED CO-COMMISSIONING,NHS ROTHERHAM CCG GP PRACTICE,26364401,542.41
Department of Health,NHS Rotherham CCG,31/03/2019,C&M-PMS Prem Notional Rent,PRC DELEGATED CO-COMMISSIONING,NHS ROTHERHAM CCG GP PRACTICE,26364401,"21,023.33"
Department of Health,NHS Rotherham CCG,31/03/2019,C&M-PMS Prem Water Rates,PRC DELEGATED CO-COMMISSIONING,NHS ROTHERHAM CCG GP PRACTICE,26364401,"3,253.77"
Department of Health,NHS Rotherham CCG,31/03/2019,C&M-PMS QOF Aspiration,PRC DELEGATED CO-COMMISSIONING,NHS ROTHERHAM CCG GP PRACTICE,26364401,"14,915.54"
Department of Health,NHS Rotherham CCG,31/03/2019,C&M-PMS Contract Value,PRC DELEGATED CO-COMMISSIONING,NHS ROTHERHAM CCG GP PRACTICE,26364427,"57,926.89"
Department of Health,NHS Rotherham CCG,31/03/2019,C&M-PMS Out of Hours Opt Outs,PRC DELEGATED CO-COMMISSIONING,NHS ROTHERHAM CCG GP PRACTICE,26364427,33.36
Department of Health,NHS Rotherham CCG,31/03/2019,C&M-PMS PCO Seniority,PRC DELEGATED CO-COMMISSIONING,NHS ROTHERHAM CCG GP PRACTICE,26364427,"2,554.70"
Department of Health,NHS Rotherham CCG,31/03/2019,C&M-PMS Prem Healthcentre Rent,PRC DELEGATED CO-COMMISSIONING,NHS ROTHERHAM CCG GP PRACTICE,26364427,"4,076.08"
Department of Health,NHS Rotherham CCG,31/03/2019,C&M-PMS QOF Aspiration,PRC DELEGATED CO-COMMISSIONING,NHS ROTHERHAM CCG GP PRACTICE,26364427,"5,691.16"
Department of Health,NHS Rotherham CCG,31/03/2019,C&M-GMS Global Sum,PRC DELEGATED CO-COMMISSIONING,NHS ROTHERHAM CCG GP PRACTICE,26600759,"26,863.51"
Department of Health,NHS Rotherham CCG,31/03/2019,C&M-GMS MPIG Correction Factor,PRC DELEGATED CO-COMMISSIONING,NHS ROTHERHAM CCG GP PRACTICE,26600759,89.99
Department of Health,NHS Rotherham CCG,31/03/2019,C&M-GMS PCO Seniority,PRC DELEGATED CO-COMMISSIONING,NHS ROTHERHAM CCG GP PRACTICE,26600759,454.97
Department of Health,NHS Rotherham CCG,31/03/2019,C&M-GMS Prem Healthcentre Rent,PRC DELEGATED CO-COMMISSIONING,NHS ROTHERHAM CCG GP PRACTICE,26600759,"2,648.21"
Department of Health,NHS Rotherham CCG,31/03/2019,C&M-GMS QOF Aspiration,PRC DELEGATED CO-COMMISSIONING,NHS ROTHERHAM CCG GP PRACTICE,26600759,"2,977.73"
Department of Health,NHS Rotherham CCG,31/03/2019,C&M-PMS Contract Value,PRC DELEGATED CO-COMMISSIONING,NHS ROTHERHAM CCG GP PRACTICE,26364407,"28,085.84"
Department of Health,NHS Rotherham CCG,31/03/2019,C&M-PMS DES Extended Hours Access,PRC DELEGATED CO-COMMISSIONING,NHS ROTHERHAM CCG GP PRACTICE,26364407,"1,618.33"
Department of Health,NHS Rotherham CCG,31/03/2019,C&M-PMS Out of Hours Opt Outs,PRC DELEGATED CO-COMMISSIONING,NHS ROTHERHAM CCG GP PRACTICE,26364407,12.07
Department of Health,NHS Rotherham CCG,31/03/2019,C&M-PMS PCO Seniority,PRC DELEGATED CO-COMMISSIONING,NHS ROTHERHAM CCG GP PRACTICE,26364407,222.82
Department of Health,NHS Rotherham CCG,31/03/2019,C&M-PMS Prem Notional Rent,PRC DELEGATED CO-COMMISSIONING,NHS ROTHERHAM CCG GP PRACTICE,26364407,"3,100.00"
Department of Health,NHS Rotherham CCG,31/03/2019,C&M-PMS QOF Aspiration,PRC DELEGATED CO-COMMISSIONING,NHS ROTHERHAM CCG GP PRACTICE,26364407,"2,989.97"
Department of Health,NHS Rotherham CCG,31/03/2019,C&M-PMS Contract Value,PRC DELEGATED CO-COMMISSIONING,NHS ROTHERHAM CCG GP PRACTICE,26364415,"54,578.01"
Department of Health,NHS Rotherham CCG,31/03/2019,C&M-PMS Out of Hours Opt Outs,PRC DELEGATED CO-COMMISSIONING,NHS ROTHERHAM CCG GP PRACTICE,26364415,1.59
Department of Health,NHS Rotherham CCG,31/03/2019,C&M-PMS PCO Seniority,PRC DELEGATED CO-COMMISSIONING,NHS ROTHERHAM CCG GP PRACTICE,26364415,198.99
Department of Health,NHS Rotherham CCG,31/03/2019,C&M-PMS Prem Notional Rent,PRC DELEGATED CO-COMMISSIONING,NHS ROTHERHAM CCG GP PRACTICE,26364415,"6,583.34"
Department of Health,NHS Rotherham CCG,31/03/2019,C&M-PMS QOF Aspiration,PRC DELEGATED CO-COMMISSIONING,NHS ROTHERHAM CCG GP PRACTICE,26364415,"5,133.91"
Department of Health,NHS Rotherham CCG,31/03/2019,C&M-GMS DES Extended Hours Access,PRC DELEGATED CO-COMMISSIONING,NHS ROTHERHAM CCG GP PRACTICE,26601052,"4,334.85"
Department of Health,NHS Rotherham CCG,31/03/2019,C&M-GMS Global Sum,PRC DELEGATED CO-COMMISSIONING,NHS ROTHERHAM CCG GP PRACTICE,26601052,"72,303.14"
Department of Health,NHS Rotherham CCG,31/03/2019,C&M-GMS Prem Notional Rent,PRC DELEGATED CO-COMMISSIONING,NHS ROTHERHAM CCG GP PRACTICE,26601052,"6,225.00"
Department of Health,NHS Rotherham CCG,31/03/2019,C&M-GMS Prem Rates,PRC DELEGATED CO-COMMISSIONING,NHS ROTHERHAM CCG GP PRACTICE,26601052,"1,022.00"
Department of Health,NHS Rotherham CCG,31/03/2019,C&M-GMS QOF Aspiration,PRC DELEGATED CO-COMMISSIONING,NHS ROTHERHAM CCG GP PRACTICE,26601052,"8,012.31"
Department of Health,NHS Rotherham CCG,31/03/2019,C&M-GMS DES Extended Hours Access,PRC DELEGATED CO-COMMISSIONING,NHS ROTHERHAM CCG GP PRACTICE,26601054,"1,937.53"
Department of Health,NHS Rotherham CCG,31/03/2019,C&M-GMS Global Sum,PRC DELEGATED CO-COMMISSIONING,NHS ROTHERHAM CCG GP PRACTICE,26601054,"30,287.06"
Department of Health,NHS Rotherham CCG,31/03/2019,C&M-GMS PCO Seniority,PRC DELEGATED CO-COMMISSIONING,NHS ROTHERHAM CCG GP PRACTICE,26601054,469.21
Department of Health,NHS Rotherham CCG,31/03/2019,C&M-GMS Prem Healthcentre Rent,PRC DELEGATED CO-COMMISSIONING,NHS ROTHERHAM CCG GP PRACTICE,26601054,"3,742.43"
Department of Health,NHS Rotherham CCG,31/03/2019,C&M-GMS QOF Aspiration,PRC DELEGATED CO-COMMISSIONING,NHS ROTHERHAM CCG GP PRACTICE,26601054,"2,641.32"
Department of Health,NHS Rotherham CCG,31/03/2019,C&M-PMS Contract Value,PRC DELEGATED CO-COMMISSIONING,NHS ROTHERHAM CCG GP PRACTICE,26364411,"64,822.69"
Department of Health,NHS Rotherham CCG,31/03/2019,C&M-PMS DES Extended Hours Access,PRC DELEGATED CO-COMMISSIONING,NHS ROTHERHAM CCG GP PRACTICE,26364411,"3,660.35"
Department of Health,NHS Rotherham CCG,31/03/2019,C&M-PMS PCO Other,PRC DELEGATED CO-COMMISSIONING,NHS ROTHERHAM CCG GP PRACTICE,26364411,541.22
Department of Health,NHS Rotherham CCG,31/03/2019,C&M-PMS PCO Seniority,PRC DELEGATED CO-COMMISSIONING,NHS ROTHERHAM CCG GP PRACTICE,26364411,"2,797.07"
Department of Health,NHS Rotherham CCG,31/03/2019,C&M-PMS Prem Notional Rent,PRC DELEGATED CO-COMMISSIONING,NHS ROTHERHAM CCG GP PRACTICE,26364411,"4,200.00"
Department of Health,NHS Rotherham CCG,31/03/2019,C&M-PMS Prem Water Rates,PRC DELEGATED CO-COMMISSIONING,NHS ROTHERHAM CCG GP PRACTICE,26364411,379.93
Department of Health,NHS Rotherham CCG,31/03/2019,C&M-PMS QOF Aspiration,PRC DELEGATED CO-COMMISSIONING,NHS ROTHERHAM CCG GP PRACTICE,26364411,"5,917.39"
Department of Health,NHS Rotherham CCG,31/03/2019,C&M-PMS Contract Value,PRC DELEGATED CO-COMMISSIONING,NHS ROTHERHAM CCG GP PRACTICE,26368190,"53,386.24"
Department of Health,NHS Rotherham CCG,31/03/2019,C&M-PMS DES Extended Hours Access,PRC DELEGATED CO-COMMISSIONING,NHS ROTHERHAM CCG GP PRACTICE,26368190,"2,846.20"
Department of Health,NHS Rotherham CCG,31/03/2019,C&M-PMS Out of Hours Opt Outs,PRC DELEGATED CO-COMMISSIONING,NHS ROTHERHAM CCG GP PRACTICE,26368190,41.03
Department of Health,NHS Rotherham CCG,31/03/2019,C&M-PMS PCO Locum Adop/Pat/Mat,PRC DELEGATED CO-COMMISSIONING,NHS ROTHERHAM CCG GP PRACTICE,26368190,"2,787.24"
Department of Health,NHS Rotherham CCG,31/03/2019,C&M-PMS PCO Seniority,PRC DELEGATED CO-COMMISSIONING,NHS ROTHERHAM CCG GP PRACTICE,26368190,"2,356.46"
Department of Health,NHS Rotherham CCG,31/03/2019,C&M-PMS Prem Notional Rent,PRC DELEGATED CO-COMMISSIONING,NHS ROTHERHAM CCG GP PRACTICE,26368190,"3,645.83"
Department of Health,NHS Rotherham CCG,31/03/2019,C&M-PMS Prem Rates,PRC DELEGATED CO-COMMISSIONING,NHS ROTHERHAM CCG GP PRACTICE,26368190,550.00
Department of Health,NHS Rotherham CCG,31/03/2019,C&M-PMS QOF Aspiration,PRC DELEGATED CO-COMMISSIONING,NHS ROTHERHAM CCG GP PRACTICE,26368190,"5,443.41"
Department of Health,NHS Rotherham CCG,31/03/2019,C&M-PMS Contract Value,PRC DELEGATED CO-COMMISSIONING,NHS ROTHERHAM CCG GP PRACTICE,26368192,"68,928.29"
Department of Health,NHS Rotherham CCG,31/03/2019,C&M-PMS DES Extended Hours Access,PRC DELEGATED CO-COMMISSIONING,NHS ROTHERHAM CCG GP PRACTICE,26368192,"3,795.73"
Department of Health,NHS Rotherham CCG,31/03/2019,C&M-PMS PCO Seniority,PRC DELEGATED CO-COMMISSIONING,NHS ROTHERHAM CCG GP PRACTICE,26368192,"1,699.29"
Department of Health,NHS Rotherham CCG,31/03/2019,C&M-PMS Prem Healthcentre Rent,PRC DELEGATED CO-COMMISSIONING,NHS ROTHERHAM CCG GP PRACTICE,26368192,545.18
Department of Health,NHS Rotherham CCG,31/03/2019,C&M-PMS Prem Notional Rent,PRC DELEGATED CO-COMMISSIONING,NHS ROTHERHAM CCG GP PRACTICE,26368192,"3,402.08"
Department of Health,NHS Rotherham CCG,31/03/2019,C&M-PMS Prem Water Rates,PRC DELEGATED CO-COMMISSIONING,NHS ROTHERHAM CCG GP PRACTICE,26368192,160.25
Department of Health,NHS Rotherham CCG,31/03/2019,C&M-PMS QOF Aspiration,PRC DELEGATED CO-COMMISSIONING,NHS ROTHERHAM CCG GP PRACTICE,26368192,"5,847.48"
Department of Health,NHS Rotherham CCG,31/03/2019,C&M-PMS Contract Value,PRC DELEGATED CO-COMMISSIONING,NHS ROTHERHAM CCG GP PRACTICE,26368188,"50,130.48"
Department of Health,NHS Rotherham CCG,31/03/2019,C&M-PMS DES Extended Hours Access,PRC DELEGATED CO-COMMISSIONING,NHS ROTHERHAM CCG GP PRACTICE,26368188,"3,142.60"
Department of Health,NHS Rotherham CCG,31/03/2019,C&M-PMS PCO Seniority,PRC DELEGATED CO-COMMISSIONING,NHS ROTHERHAM CCG GP PRACTICE,26368188,"1,867.48"
Department of Health,NHS Rotherham CCG,31/03/2019,C&M-PMS Prem Healthcentre Rent,PRC DELEGATED CO-COMMISSIONING,NHS ROTHERHAM CCG GP PRACTICE,26368188,"1,979.17"
Department of Health,NHS Rotherham CCG,31/03/2019,C&M-PMS QOF Aspiration,PRC DELEGATED CO-COMMISSIONING,NHS ROTHERHAM CCG GP PRACTICE,26368188,"3,964.89"
Department of Health,NHS Rotherham CCG,31/03/2019,C&M-PMS Contract Value,PRC DELEGATED CO-COMMISSIONING,NHS ROTHERHAM CCG GP PRACTICE,26364409,"47,915.72"
Department of Health,NHS Rotherham CCG,31/03/2019,C&M-PMS DES Extended Hours Access,PRC DELEGATED CO-COMMISSIONING,NHS ROTHERHAM CCG GP PRACTICE,26364409,"2,747.40"
Department of Health,NHS Rotherham CCG,31/03/2019,C&M-PMS Out of Hours Opt Outs,PRC DELEGATED CO-COMMISSIONING,NHS ROTHERHAM CCG GP PRACTICE,26364409,29.48
Department of Health,NHS Rotherham CCG,31/03/2019,C&M-PMS PCO Seniority,PRC DELEGATED CO-COMMISSIONING,NHS ROTHERHAM CCG GP PRACTICE,26364409,822.33
Department of Health,NHS Rotherham CCG,31/03/2019,C&M-PMS Prem Notional Rent,PRC DELEGATED CO-COMMISSIONING,NHS ROTHERHAM CCG GP PRACTICE,26364409,"7,075.50"
Department of Health,NHS Rotherham CCG,31/03/2019,C&M-PMS QOF Aspiration,PRC DELEGATED CO-COMMISSIONING,NHS ROTHERHAM CCG GP PRACTICE,26364409,"3,804.56"
Department of Health,NHS Rotherham CCG,31/03/2019,C&M-PMS Contract Value,PRC DELEGATED CO-COMMISSIONING,NHS ROTHERHAM CCG GP PRACTICE,26364417,"38,984.07"
Department of Health,NHS Rotherham CCG,31/03/2019,C&M-PMS DES Extended Hours Access,PRC DELEGATED CO-COMMISSIONING,NHS ROTHERHAM CCG GP PRACTICE,26364417,"2,190.23"
Department of Health,NHS Rotherham CCG,31/03/2019,C&M-PMS Out of Hours Opt Outs,PRC DELEGATED CO-COMMISSIONING,NHS ROTHERHAM CCG GP PRACTICE,26364417,52.56
Department of Health,NHS Rotherham CCG,31/03/2019,C&M-PMS PCO Seniority,PRC DELEGATED CO-COMMISSIONING,NHS ROTHERHAM CCG GP PRACTICE,26364417,"1,299.84"
Department of Health,NHS Rotherham CCG,31/03/2019,C&M-PMS Prem Notional Rent,PRC DELEGATED CO-COMMISSIONING,NHS ROTHERHAM CCG GP PRACTICE,26364417,"3,204.17"
Department of Health,NHS Rotherham CCG,31/03/2019,C&M-PMS QOF Aspiration,PRC DELEGATED CO-COMMISSIONING,NHS ROTHERHAM CCG GP PRACTICE,26364417,"2,564.09"
Department of Health,NHS Rotherham CCG,31/03/2019,C&M-PMS Contract Value,PRC DELEGATED CO-COMMISSIONING,NHS ROTHERHAM CCG GP PRACTICE,26364419,"77,401.48"
Department of Health,NHS Rotherham CCG,31/03/2019,C&M-PMS DES Extended Hours Access,PRC DELEGATED CO-COMMISSIONING,NHS ROTHERHAM CCG GP PRACTICE,26364419,"4,746.68"
Department of Health,NHS Rotherham CCG,31/03/2019,C&M-PMS DES Learn Dsblty Hlth Chk,PRC DELEGATED CO-COMMISSIONING,NHS ROTHERHAM CCG GP PRACTICE,26364419,"1,540.00"
Department of Health,NHS Rotherham CCG,31/03/2019,C&M-PMS Out of Hours Opt Outs,PRC DELEGATED CO-COMMISSIONING,NHS ROTHERHAM CCG GP PRACTICE,26364419,14.51
Department of Health,NHS Rotherham CCG,31/03/2019,C&M-PMS PCO Seniority,PRC DELEGATED CO-COMMISSIONING,NHS ROTHERHAM CCG GP PRACTICE,26364419,"1,053.32"
Department of Health,NHS Rotherham CCG,31/03/2019,C&M-PMS Prem Notional Rent,PRC DELEGATED CO-COMMISSIONING,NHS ROTHERHAM CCG GP PRACTICE,26364419,"6,512.50"
Department of Health,NHS Rotherham CCG,31/03/2019,C&M-PMS Prem Water Rates,PRC DELEGATED CO-COMMISSIONING,NHS ROTHERHAM CCG GP PRACTICE,26364419,81.31
Department of Health,NHS Rotherham CCG,31/03/2019,C&M-PMS QOF Aspiration,PRC DELEGATED CO-COMMISSIONING,NHS ROTHERHAM CCG GP PRACTICE,26364419,"6,796.18"
Department of Health,NHS Rotherham CCG,31/03/2019,Prescribing,MEDICINES MANAGEMENT - CLINICAL,FRESENIUS KABI LTD,26547032,"29,600.71"
Department of Health,NHS Rotherham CCG,31/03/2019,C&M-APMS Contract Value,PRC DELEGATED CO-COMMISSIONING,NHS ROTHERHAM CCG GP PRACTICE,26364421,"60,438.83"
Department of Health,NHS Rotherham CCG,31/03/2019,C&M-APMS DES Extended Hours Access,PRC DELEGATED CO-COMMISSIONING,NHS ROTHERHAM CCG GP PRACTICE,26364421,"3,638.98"
Department of Health,NHS Rotherham CCG,31/03/2019,C&M-APMS DES Violent Patients,PRC DELEGATED CO-COMMISSIONING,NHS ROTHERHAM CCG GP PRACTICE,26364421,604.25
Department of Health,NHS Rotherham CCG,31/03/2019,C&M-APMS Prem Actual Rent,PRC DELEGATED CO-COMMISSIONING,NHS ROTHERHAM CCG GP PRACTICE,26364421,"2,083.33"
Department of Health,NHS Rotherham CCG,31/03/2019,C&M-APMS Prem Healthcentre Rent,PRC DELEGATED CO-COMMISSIONING,NHS ROTHERHAM CCG GP PRACTICE,26364421,"9,366.49"
Department of Health,NHS Rotherham CCG,31/03/2019,C&M-APMS Prem Water Rates,PRC DELEGATED CO-COMMISSIONING,NHS ROTHERHAM CCG GP PRACTICE,26364421,854.58
Department of Health,NHS Rotherham CCG,31/03/2019,C&M-PMS Funding Differential Review,PRC DELEGATED CO-COMMISSIONING,NHS ROTHERHAM CCG GP PRACTICE,26364421,"12,840.67"
Department of Health,NHS Rotherham CCG,31/03/2019,C&M-PMS Prem Healthcentre Rent,PRC DELEGATED CO-COMMISSIONING,NHS ROTHERHAM CCG GP PRACTICE,26364421,"4,866.49"
Department of Health,NHS Rotherham CCG,31/03/2019,C&M-PMS QOF Aspiration,PRC DELEGATED CO-COMMISSIONING,NHS ROTHERHAM CCG GP PRACTICE,26364421,"4,791.33"
Department of Health,NHS Rotherham CCG,31/03/2019,Apprenticeship Levy Payable,BALANCE SHEET,HMRC,26406809,544.00
Department of Health,NHS Rotherham CCG,31/03/2019,Income tax <1Yr,BALANCE SHEET,HMRC,26406809,"52,776.55"
Department of Health,NHS Rotherham CCG,31/03/2019,Income tax <1Yr-Student Loans,BALANCE SHEET,HMRC,26406809,238.00
Department of Health,NHS Rotherham CCG,31/03/2019,National Insurance < 1 yr-NI- ERS,BALANCE SHEET,HMRC,26406809,"37,871.47"
Department of Health,NHS Rotherham CCG,31/03/2019,National Insurance < 1 yr-NI-EES,BALANCE SHEET,HMRC,26406809,"28,719.97"
Department of Health,NHS Rotherham CCG,31/03/2019,Statutory Mat Pay < 1 yr,BALANCE SHEET,HMRC,26406809,-534.28
Department of Health,NHS Rotherham CCG,31/03/2019,Hcare Srv Rec NHS Trust-Contract Baseline,ACUTE COMMISSIONING,LEEDS TEACHING HOSPITALS NHS TRUST,26287740,"30,671.00"
Department of Health,NHS Rotherham CCG,31/03/2019,C&M-PMS Contract Value,PRC DELEGATED CO-COMMISSIONING,NHS ROTHERHAM CCG GP PRACTICE,26368193,-237.32
Department of Health,NHS Rotherham CCG,31/03/2019,C&M-PMS GP Statutory Levy,PRC DELEGATED CO-COMMISSIONING,NHS ROTHERHAM CCG GP PRACTICE,26368193,-383.61
Department of Health,NHS Rotherham CCG,31/03/2019,C&M-PMS Out of Hours Opt Outs,PRC DELEGATED CO-COMMISSIONING,NHS ROTHERHAM CCG GP PRACTICE,26368193,"-5,598.98"
Department of Health,NHS Rotherham CCG,31/03/2019,C&M-PMS Voluntary Levy,PRC DELEGATED CO-COMMISSIONING,NHS ROTHERHAM CCG GP PRACTICE,26368193,-56.41
Department of Health,NHS Rotherham CCG,31/03/2019,ME - PMS GP Prior Year ERs,PRC DELEGATED CO-COMMISSIONING,NHS ROTHERHAM CCG GP PRACTICE,26368193,"-12,800.00"
Department of Health,NHS Rotherham CCG,31/03/2019,ME-PMS GP Pension EEs-PMS,PRC DELEGATED CO-COMMISSIONING,NHS ROTHERHAM CCG GP PRACTICE,26368193,"-6,400.91"
Department of Health,NHS Rotherham CCG,31/03/2019,ME-PMS GP Pension ERs Adjs - PMS,PRC DELEGATED CO-COMMISSIONING,NHS ROTHERHAM CCG GP PRACTICE,26368193,"-6,843.00"
Department of Health,NHS Rotherham CCG,31/03/2019,ME-PMS GP Prior Year EEs,PRC DELEGATED CO-COMMISSIONING,NHS ROTHERHAM CCG GP PRACTICE,26368193,"-12,016.68"
Department of Health,NHS Rotherham CCG,31/03/2019,C&M-PMS Contract Value,PRC DELEGATED CO-COMMISSIONING,NHS ROTHERHAM CCG GP PRACTICE,26368194,"118,225.88"
Department of Health,NHS Rotherham CCG,31/03/2019,C&M-PMS DES Extended Hours Access,PRC DELEGATED CO-COMMISSIONING,NHS ROTHERHAM CCG GP PRACTICE,26368194,"6,377.35"
Department of Health,NHS Rotherham CCG,31/03/2019,C&M-PMS Out of Hours Opt Outs,PRC DELEGATED CO-COMMISSIONING,NHS ROTHERHAM CCG GP PRACTICE,26368194,11.71
Department of Health,NHS Rotherham CCG,31/03/2019,C&M-PMS PCO Seniority,PRC DELEGATED CO-COMMISSIONING,NHS ROTHERHAM CCG GP PRACTICE,26368194,"1,854.49"
Department of Health,NHS Rotherham CCG,31/03/2019,C&M-PMS Prem Actual Rent,PRC DELEGATED CO-COMMISSIONING,NHS ROTHERHAM CCG GP PRACTICE,26368194,"7,153.13"
Department of Health,NHS Rotherham CCG,31/03/2019,C&M-PMS Prem Healthcentre Rent,PRC DELEGATED CO-COMMISSIONING,NHS ROTHERHAM CCG GP PRACTICE,26368194,"1,127.91"
Department of Health,NHS Rotherham CCG,31/03/2019,C&M-PMS Prem Notional Rent,PRC DELEGATED CO-COMMISSIONING,NHS ROTHERHAM CCG GP PRACTICE,26368194,"7,326.17"
Department of Health,NHS Rotherham CCG,31/03/2019,C&M-PMS Prem Water Rates,PRC DELEGATED CO-COMMISSIONING,NHS ROTHERHAM CCG GP PRACTICE,26368194,130.81
Department of Health,NHS Rotherham CCG,31/03/2019,C&M-PMS QOF Aspiration,PRC DELEGATED CO-COMMISSIONING,NHS ROTHERHAM CCG GP PRACTICE,26368194,"11,807.90"
Department of Health,NHS Rotherham CCG,31/03/2019,C&M-PMS Contract Value,PRC DELEGATED CO-COMMISSIONING,NHS ROTHERHAM CCG GP PRACTICE,26364425,"53,377.99"
Department of Health,NHS Rotherham CCG,31/03/2019,C&M-PMS Out of Hours Opt Outs,PRC DELEGATED CO-COMMISSIONING,NHS ROTHERHAM CCG GP PRACTICE,26364425,35.72
Department of Health,NHS Rotherham CCG,31/03/2019,C&M-PMS PCO Seniority,PRC DELEGATED CO-COMMISSIONING,NHS ROTHERHAM CCG GP PRACTICE,26364425,"1,986.65"
Department of Health,NHS Rotherham CCG,31/03/2019,C&M-PMS Prem Healthcentre Rent,PRC DELEGATED CO-COMMISSIONING,NHS ROTHERHAM CCG GP PRACTICE,26364425,"3,954.56"
Department of Health,NHS Rotherham CCG,31/03/2019,C&M-PMS QOF Aspiration,PRC DELEGATED CO-COMMISSIONING,NHS ROTHERHAM CCG GP PRACTICE,26364425,"5,834.10"
Department of Health,NHS Rotherham CCG,31/03/2019,Clinical&Medical-Commercial Sector,WHEELCHAIR SERVICE,MEDEQUIP ASSISTIVE TECHNOLOGY LTD,26447386,"157,987.20"
Department of Health,NHS Rotherham CCG,28/02/2019,C&M-GMS Prem Other,PRC DELEGATED CO-COMMISSIONING,NHS ENGLAND,26171910,"1,533.06"
Department of Health,NHS Rotherham CCG,28/02/2019,Contract- Refuse & Clinical Waste,PRC DELEGATED CO-COMMISSIONING,NHS ENGLAND,26171910,"23,307.38"
Department of Health,NHS Rotherham CCG,28/02/2019,legal fees,PRC DELEGATED CO-COMMISSIONING,NHS ENGLAND,26171910,"10,547.33"
Department of Health,NHS Rotherham CCG,31/03/2019,Hlthcre-Foundation Trsts,LEARNING DIFFICULTIES,NORTHUMBERLAND TYNE AND WEAR NHS FOUNDATION TRUST,26287759,"60,484.48"
Department of Health,NHS Rotherham CCG,31/03/2019,Clinical&Medical-Commercial Sector,ACUTE COMMISSIONING,ONEHEALTH GROUP,26287769,"34,415.55"
Department of Health,NHS Rotherham CCG,31/03/2019,Clinical&Medical-Commercial Sector,ACUTE COMMISSIONING,ONEHEALTH GROUP,26447199,"68,980.67"
Department of Health,NHS Rotherham CCG,31/03/2019,Clinical&Medical-Commercial Sector,PATIENT TRANSPORT,PREMIER CARE DIRECT LTD,26274297,"47,297.42"
Department of Health,NHS Rotherham CCG,31/03/2019,Computer Network Costs,PRIMARY CARE IT,QMASTERS MEDICAL INFORMATICS LTD,26248473,"25,717.20"
Department of Health,NHS Rotherham CCG,31/03/2019,Hcare Srv Rec Fdtn Trust-Contract Baseline,MENTAL HEALTH CONTRACTS,ROTHERHAM DONCASTER & SOUTH HUMBER MENTAL HEALTH NHS FOUNDATION TRUST,26331515,"2,062,979.83"
Department of Health,NHS Rotherham CCG,31/03/2019,Hcare Srv Rec Fdtn Trust-Contract Baseline,LEARNING DIFFICULTIES,ROTHERHAM DONCASTER & SOUTH HUMBER MENTAL HEALTH NHS FOUNDATION TRUST,26331517,"186,118.00"
Department of Health,NHS Rotherham CCG,28/02/2019,Hcare Srv Rec Fdtn Trust-Contract Baseline,MENTAL HEALTH CONTRACTS,ROTHERHAM DONCASTER & SOUTH HUMBER MENTAL HEALTH NHS FOUNDATION TRUST,26141794,"73,290.00"
Department of Health,NHS Rotherham CCG,31/03/2019,Clinical&Medical-Voluntary Sector,HOSPICES,ROTHERHAM HOSPICE TRUST (THE),26331399,"314,000.00"
Department of Health,NHS Rotherham CCG,31/03/2019,Clinical&Medical-Othe Public Sector,MENTAL HEALTH SERVICES - OTHER,ROTHERHAM METROPOLITAN BOROUGH COUNCIL,26199052,"64,800.00"
Department of Health,NHS Rotherham CCG,31/03/2019,Clinical&Medical-Othe Public Sector,MENTAL HEALTH CONTRACTS,ROTHERHAM METROPOLITAN BOROUGH COUNCIL,26447176,"72,928.72"
Department of Health,NHS Rotherham CCG,31/03/2019,Social Care-Direct Payments,COMMISSIONING - NON ACUTE,ROTHERHAM METROPOLITAN BOROUGH COUNCIL,26472054,"257,500.00"
Department of Health,NHS Rotherham CCG,31/03/2019,Clinical&Medical-Othe Public Sector,INTERMEDIATE CARE,ROTHERHAM METROPOLITAN BOROUGH COUNCIL,26472055,"920,500.00"
Department of Health,NHS Rotherham CCG,31/03/2019,Cont Care-FNC Client Continence Allow,FUNDED NURSING CARE,ROTHERHAM METROPOLITAN BOROUGH COUNCIL,26505338,"54,355.50"
Department of Health,NHS Rotherham CCG,31/03/2019,Cont Care-Funded Nursing Care Allow,FUNDED NURSING CARE,ROTHERHAM METROPOLITAN BOROUGH COUNCIL,26505338,"390,918.75"
Department of Health,NHS Rotherham CCG,31/03/2019,Clinical&Medical-Serv Recd-F Trsts,Winter Resilience,ROTHERHAM NHS FOUNDATION TRUST,26276124,"50,000.00"
Department of Health,NHS Rotherham CCG,31/03/2019,Hcare Srv Rec Fdtn Trust-Contract Baseline,ACUTE COMMISSIONING,ROTHERHAM NHS FOUNDATION TRUST,26417267,"27,000.00"
Department of Health,NHS Rotherham CCG,31/03/2019,Oth Travel Costs-Training Trav&Subs,MEDICINES MANAGEMENT - CLINICAL,ROTHERHAM NHS FOUNDATION TRUST,26417413,185.36
Department of Health,NHS Rotherham CCG,31/03/2019,Seconded-Basic Sal-Staff fm oth org,MEDICINES MANAGEMENT - CLINICAL,ROTHERHAM NHS FOUNDATION TRUST,26417413,"36,994.31"
Department of Health,NHS Rotherham CCG,31/03/2019,Stationery,MEDICINES MANAGEMENT - CLINICAL,ROTHERHAM NHS FOUNDATION TRUST,26417413,305.57
Department of Health,NHS Rotherham CCG,31/03/2019,Hcare Srv Rec Fdtn Trust-Contract Baseline,ACUTE COMMISSIONING,ROTHERHAM NHS FOUNDATION TRUST,26447298,"50,500.00"
Department of Health,NHS Rotherham CCG,28/02/2019,Clinical&Medical-Clinical Other,WHEELCHAIR SERVICE,ROTHERHAM NHS FOUNDATION TRUST,26186200,"32,306.87"
Department of Health,NHS Rotherham CCG,28/02/2019,Training Expenses,COMMISSIONING - NON ACUTE,ROTHERHAM NHS FOUNDATION TRUST,26089810,"34,212.00"
Department of Health,NHS Rotherham CCG,28/02/2019,Hcare Srv Rec Fdtn Trust-Contract Baseline,ACUTE COMMISSIONING,ROTHERHAM NHS FOUNDATION TRUST,26199062,"11,951,669.00"
Department of Health,NHS Rotherham CCG,28/02/2019,Hcare Srv Rec Fdtn Trust-Contract Baseline,COMMUNITY SERVICES,ROTHERHAM NHS FOUNDATION TRUST,26199062,"2,171,278.00"
Department of Health,NHS Rotherham CCG,31/03/2019,Clinical&Medical-Independent Sector,COMMISSIONING - NON ACUTE,SELF MANAGEMENT UK,26569903,"25,000.00"
Department of Health,NHS Rotherham CCG,28/02/2019,Hcare Srv Rec Fdtn Trust-Contract Baseline,ACUTE COMMISSIONING,SHEFFIELD CHILDRENS NHS FOUNDATION TRUST,26199028,"182,802.28"
Department of Health,NHS Rotherham CCG,31/03/2019,Hlthcre-Foundation Trsts,LEARNING DIFFICULTIES,SHEFFIELD HEALTH & SOCIAL CARE NHS FOUNDATION TRUST,26220239,"26,903.35"
Department of Health,NHS Rotherham CCG,31/03/2019,Hcare Srv Rec Fdtn Trust-Contract Baseline,ACUTE COMMISSIONING,SHEFFIELD TEACHING HOSPITALS NHS FOUNDATION TRUST,26331451,"526,228.00"
Department of Health,NHS Rotherham CCG,31/03/2019,Hcare Srv Rec Fdtn Trust-Contract Cost per Case,ACUTE COMMISSIONING,SHEFFIELD TEACHING HOSPITALS NHS FOUNDATION TRUST,26331462,"82,602.00"
Department of Health,NHS Rotherham CCG,28/02/2019,Hcare Srv Rec Fdtn Trust-Contract Cost per Case,ACUTE COMMISSIONING,SHEFFIELD TEACHING HOSPITALS NHS FOUNDATION TRUST,26199054,"183,913.00"
Department of Health,NHS Rotherham CCG,28/02/2019,Hcare Srv Rec Fdtn Trust-Contract Baseline,ACUTE COMMISSIONING,SHEFFIELD TEACHING HOSPITALS NHS FOUNDATION TRUST,26199055,"1,688,533.00"
Department of Health,NHS Rotherham CCG,31/03/2019,Clinical&Medical-Commercial Sector,NCAS/OATS,SPAMEDICA LTD,26436233,"42,475.32"
Department of Health,NHS Rotherham CCG,31/03/2019,C&M-PMS GP Statutory Levy,PRC DELEGATED CO-COMMISSIONING,NHS ROTHERHAM CCG GP PRACTICE,26364422,-470.28
Department of Health,NHS Rotherham CCG,31/03/2019,C&M-PMS Out of Hours Opt Outs,PRC DELEGATED CO-COMMISSIONING,NHS ROTHERHAM CCG GP PRACTICE,26364422,"-5,980.58"
Department of Health,NHS Rotherham CCG,31/03/2019,C&M-PMS Prem Healthcentre Rent,PRC DELEGATED CO-COMMISSIONING,NHS ROTHERHAM CCG GP PRACTICE,26364422,-273.11
Department of Health,NHS Rotherham CCG,31/03/2019,C&M-PMS Voluntary Levy,PRC DELEGATED CO-COMMISSIONING,NHS ROTHERHAM CCG GP PRACTICE,26364422,-69.16
Department of Health,NHS Rotherham CCG,31/03/2019,ME-PMS GP Pension EEs-PMS,PRC DELEGATED CO-COMMISSIONING,NHS ROTHERHAM CCG GP PRACTICE,26364422,"-9,750.83"
Department of Health,NHS Rotherham CCG,31/03/2019,ME-PMS GP Pension ERs Adjs - PMS,PRC DELEGATED CO-COMMISSIONING,NHS ROTHERHAM CCG GP PRACTICE,26364422,"-9,922.20"
Department of Health,NHS Rotherham CCG,31/03/2019,C&M-PMS Contract Value,PRC DELEGATED CO-COMMISSIONING,NHS ROTHERHAM CCG GP PRACTICE,26364423,"127,103.47"
Department of Health,NHS Rotherham CCG,31/03/2019,C&M-PMS DES Extended Hours Access,PRC DELEGATED CO-COMMISSIONING,NHS ROTHERHAM CCG GP PRACTICE,26364423,"7,867.43"
Department of Health,NHS Rotherham CCG,31/03/2019,C&M-PMS PCO Seniority,PRC DELEGATED CO-COMMISSIONING,NHS ROTHERHAM CCG GP PRACTICE,26364423,"4,077.36"
Department of Health,NHS Rotherham CCG,31/03/2019,C&M-PMS Prem Healthcentre Rent,PRC DELEGATED CO-COMMISSIONING,NHS ROTHERHAM CCG GP PRACTICE,26364423,671.08
Department of Health,NHS Rotherham CCG,31/03/2019,C&M-PMS QOF Aspiration,PRC DELEGATED CO-COMMISSIONING,NHS ROTHERHAM CCG GP PRACTICE,26364423,"12,581.52"
Department of Health,NHS Rotherham CCG,31/03/2019,ME-PMS GP Pension EEs Adjs - PMS,PRC DELEGATED CO-COMMISSIONING,NHS ROTHERHAM CCG GP PRACTICE,26364423,"3,029.52"
Department of Health,NHS Rotherham CCG,31/03/2019,ME-PMS GP Pension ERs Adjs - PMS,PRC DELEGATED CO-COMMISSIONING,NHS ROTHERHAM CCG GP PRACTICE,26364423,"2,379.66"
Department of Health,NHS Rotherham CCG,31/03/2019,C&M-GMS DES Imp Online Patient Acc,GP FORWARD VIEW,SUBSTRAKT HEALTH LTD,26447398,"59,670.72"
Department of Health,NHS Rotherham CCG,31/03/2019,Clinical&Medical- Non NHS LES,LOCAL ENHANCED SERVICES,SUBSTRAKT HEALTH LTD,26569608,"150,300.00"
Department of Health,NHS Rotherham CCG,31/03/2019,Hcare Srv Rec NHS Trust-Contract Baseline,PATIENT TRANSPORT,YORKSHIRE AMBULANCE SERVICE NHS TRUST,26447314,"115,404.21"
Department of Health,NHS Rotherham CCG,31/03/2019,Hcare Srv Rec NHS Trust-Contract Baseline,AMBULANCE SERVICES,YORKSHIRE AMBULANCE SERVICE NHS TRUST,26447331,"648,904.00"
Department of Health,NHS Rotherham CCG,31/03/2019,Hcare Srv Rec NHS Trust-Contract Baseline,NHS 111,YORKSHIRE AMBULANCE SERVICE NHS TRUST,26447336,"55,000.00"
Department of Health,NHS Rotherham CCG,31/03/2019,Hcare Srv Rec NHS Trust-Contract Baseline,PATIENT TRANSPORT,YORKSHIRE AMBULANCE SERVICE NHS TRUST,26447370,"50,925.00"
,,,,,,,"28,573,292.43"
